[Event "Titled Tuesday Blitz November 15 Early 2022"]
[White "Fajdetic, Hrvoje"]
[Black "Rosenberg, Evan S"]
[WhiteFideId "14501945"]
[BlackFideId "2019299"]
[WhiteElo "2172"]
[BlackElo "2378"]
[Result "1/2-1/2"]
[Round "11"]
[TimeControl "180+1"]
[Date "2022.11.16"]
[WhiteClock "0:00:12"]
[BlackClock "0:00:09"]

1. b3 {[%clk 0:02:52]}  e5 {[%clk 0:02:59]} 2. Bb2 {[%clk 0:02:53]}  Nc6 {[%clk 0:02:59]} 3. e3 {[%clk 0:02:54]}  d5 {[%clk 0:02:59]} 4. Ne2 {[%clk 0:02:54]}  Bd6 {[%clk 0:02:45]} 5. d4 {[%clk 0:02:54]}  Nf6 {[%clk 0:02:37]} 6. c4 {[%clk 0:02:52]}  exd4 {[%clk 0:02:30]} 7. Nxd4 {[%clk 0:02:50]}  O-O {[%clk 0:02:26]} 8. Be2 {[%clk 0:02:39]}  Ne5 {[%clk 0:02:07]} 9. cxd5 {[%clk 0:02:31]}  Bb4+ {[%clk 0:01:58]} 10. Bc3 {[%clk 0:02:30]}  Nxd5 {[%clk 0:01:34]} 11. Bxb4 {[%clk 0:02:20]}  Nxb4 {[%clk 0:01:35]} 12. a3 {[%clk 0:02:16]}  c5 {[%clk 0:01:12]} 13. axb4 {[%clk 0:02:07]}  cxd4 {[%clk 0:01:12]} 14. Qxd4 {[%clk 0:02:04]}  Qxd4 {[%clk 0:01:10]} 15. exd4 {[%clk 0:02:05]}  Nc6 {[%clk 0:01:11]} 16. O-O {[%clk 0:01:56]}  Nxd4 {[%clk 0:01:10]} 17. Bc4 {[%clk 0:01:53]}  Bg4 {[%clk 0:00:50]} 18. Nc3 {[%clk 0:01:50]}  a6 {[%clk 0:00:45]} 19. Ra5 {[%clk 0:01:34]}  Rac8 {[%clk 0:00:41]} 20. b5 {[%clk 0:01:30]}  Nxb3 {[%clk 0:00:29]} 21. Bxb3 {[%clk 0:01:16]}  Rxc3 {[%clk 0:00:28]} 22. Bd5 {[%clk 0:01:14]}  axb5 {[%clk 0:00:24]} 23. f3 {[%clk 0:01:01]}  Bd7 {[%clk 0:00:15]} 24. Bxb7 {[%clk 0:00:59]}  Rb8 {[%clk 0:00:14]} 25. Be4 {[%clk 0:00:57]}  b4 {[%clk 0:00:13]} 26. Rb1 {[%clk 0:00:52]}  g6 {[%clk 0:00:12]} 27. Ra7 {[%clk 0:00:44]}  Be6 {[%clk 0:00:12]} 28. h4 {[%clk 0:00:41]}  b3 {[%clk 0:00:12]} 29. h5 {[%clk 0:00:41]}  gxh5 {[%clk 0:00:13]} 30. Kh2 {[%clk 0:00:40]}  b2 {[%clk 0:00:13]} 31. Rb7 {[%clk 0:00:35]}  Rxb7 {[%clk 0:00:12]} 32. Bxb7 {[%clk 0:00:36]}  Rc2 {[%clk 0:00:12]} 33. Be4 {[%clk 0:00:35]}  Rd2 {[%clk 0:00:12]} 34. Kg3 {[%clk 0:00:30]}  Ba2 {[%clk 0:00:11]} 35. Rh1 {[%clk 0:00:28]}  Re2 {[%clk 0:00:05]} 36. Bb1 {[%clk 0:00:24]}  Bxb1 {[%clk 0:00:04]} 37. Rxb1 {[%clk 0:00:24]}  Kg7 {[%clk 0:00:03]} 38. Kh3 {[%clk 0:00:25]}  Kg6 {[%clk 0:00:02]} 39. g3 {[%clk 0:00:25]}  Kg5 {[%clk 0:00:01]} 40. Rd1 {[%clk 0:00:20]}  Rc2 {[%clk 0:00:01]} 41. Rd5+ {[%clk 0:00:19]}  Kf6 {[%clk 0:00:02]} 42. Rb5 {[%clk 0:00:19]}  Ke6 {[%clk 0:00:02]} 43. Kh4 {[%clk 0:00:18]}  Rh2+ {[%clk 0:00:02]} 44. Kg5 {[%clk 0:00:18]}  f6+ {[%clk 0:00:03]} 45. Kf4 {[%clk 0:00:18]}  Rc2 {[%clk 0:00:03]} 46. Ke3 {[%clk 0:00:13]}  Kd6 {[%clk 0:00:04]} 47. Kd3 {[%clk 0:00:13]}  Rh2 {[%clk 0:00:04]} 48. Kd4 {[%clk 0:00:11]}  Kc6 {[%clk 0:00:05]} 49. Rb3 {[%clk 0:00:10]}  Rd2+ {[%clk 0:00:05]} 50. Kc3 {[%clk 0:00:10]}  Rg2 {[%clk 0:00:06]} 51. Rxb2 {[%clk 0:00:08]}  Rxg3 {[%clk 0:00:06]} 52. Rf2 {[%clk 0:00:09]}  Kd5 {[%clk 0:00:06]} 53. Kd3 {[%clk 0:00:09]}  Ke5 {[%clk 0:00:07]} 54. Ke3 {[%clk 0:00:10]}  Kf5 {[%clk 0:00:07]} 55. Rh2 {[%clk 0:00:10]}  h4 {[%clk 0:00:08]} 56. Rxh4 {[%clk 0:00:10]}  Rg7 {[%clk 0:00:09]} 57. Rh5+ {[%clk 0:00:09]}  Kg6 {[%clk 0:00:09]} 58. Rb5 {[%clk 0:00:10]}  Re7+ {[%clk 0:00:09]} 59. Kf4 {[%clk 0:00:11]}  Re5 {[%clk 0:00:10]} 60. Rb6 {[%clk 0:00:11]}  Ra5 {[%clk 0:00:10]} 61. Rb7 {[%clk 0:00:11]}  Ra4+ {[%clk 0:00:10]} 62. Kg3 {[%clk 0:00:12]}  h5 {[%clk 0:00:10]} 63. Rb5 {[%clk 0:00:12]}  f5 {[%clk 0:00:11]} 64. Rb6+ {[%clk 0:00:12]}  Kg5 {[%clk 0:00:11]} 65. Rb8 {[%clk 0:00:13]}  h4+ {[%clk 0:00:11]} 66. Kh3 {[%clk 0:00:12]}  Kf4 {[%clk 0:00:10]} 67. Kxh4 {[%clk 0:00:11]}  Kxf3+ {[%clk 0:00:11]} 68. Kh3 {[%clk 0:00:12]}  Ra3 {[%clk 0:00:10]} 69. Kh2 {[%clk 0:00:11]}  f4 {[%clk 0:00:10]} 70. Kg1 {[%clk 0:00:11]}  Ra2 {[%clk 0:00:10]} 71. Rb3+ {[%clk 0:00:10]}  Kg4 {[%clk 0:00:09]} 72. Kf1 {[%clk 0:00:11]}  f3 {[%clk 0:00:09]} 73. Rb8 {[%clk 0:00:11]}  Ra1+ {[%clk 0:00:08]} 74. Kf2 {[%clk 0:00:11]}  Ra2+ {[%clk 0:00:09]} 75. Kf1 {[%clk 0:00:11]}  Ra1+ {[%clk 0:00:09]} 76. Kf2 {[%clk 0:00:12]}  Ra2+ {[%clk 0:00:09]} 77. Kf1 {[%clk 0:00:12]} 1/2-1/2


[Site "https://www.chess.com"]

[Event "Titled Tuesday Blitz November 15 Early 2022"]
[White "Fiol, Fabrice"]
[Black "Izuzquiza Gonzalez, Javier"]
[WhiteFideId "611670"]
[BlackFideId "3101029"]
[WhiteElo "2404"]
[BlackElo "2034"]
[Result "1-0"]
[Round "11"]
[TimeControl "180+1"]
[Date "2022.11.16"]
[WhiteClock "0:00:55"]
[BlackClock "0:00:02"]

1. e4 {[%clk 0:03:00]}  c5 {[%clk 0:02:59]} 2. Nf3 {[%clk 0:02:59]}  e6 {[%clk 0:02:59]} 3. d4 {[%clk 0:02:59]}  cxd4 {[%clk 0:03:00]} 4. Nxd4 {[%clk 0:02:59]}  a6 {[%clk 0:03:01]} 5. Bd3 {[%clk 0:02:59]}  Nf6 {[%clk 0:03:00]} 6. Qe2 {[%clk 0:02:58]}  d6 {[%clk 0:03:00]} 7. c4 {[%clk 0:02:58]}  Qc7 {[%clk 0:02:58]} 8. Nc3 {[%clk 0:02:58]}  g6 {[%clk 0:02:56]} 9. Nf3 {[%clk 0:02:56]}  Bg7 {[%clk 0:02:56]} 10. h3 {[%clk 0:02:56]}  Nc6 {[%clk 0:02:55]} 11. Be3 {[%clk 0:02:54]}  O-O {[%clk 0:02:48]} 12. Rc1 {[%clk 0:02:53]}  Qe7 {[%clk 0:02:38]} 13. O-O {[%clk 0:02:50]}  Nd7 {[%clk 0:02:37]} 14. b3 {[%clk 0:02:46]}  Nc5 {[%clk 0:02:31]} 15. Bb1 {[%clk 0:02:45]}  b6 {[%clk 0:02:28]} 16. Rfd1 {[%clk 0:02:39]}  Bb7 {[%clk 0:02:28]} 17. Bf4 {[%clk 0:02:22]}  Ne5 {[%clk 0:02:23]} 18. b4 {[%clk 0:02:18]}  Ncd7 {[%clk 0:02:14]} 19. a3 {[%clk 0:02:18]}  Rac8 {[%clk 0:02:10]} 20. Ba2 {[%clk 0:02:17]}  Rfd8 {[%clk 0:02:06]} 21. Be3 {[%clk 0:01:55]}  Nxf3+ {[%clk 0:01:59]} 22. Qxf3 {[%clk 0:01:55]}  Ne5 {[%clk 0:01:59]} 23. Qe2 {[%clk 0:01:54]}  Qc7 {[%clk 0:01:34]} 24. Na4 {[%clk 0:01:52]}  Nd7 {[%clk 0:01:31]} 25. f3 {[%clk 0:01:36]}  Bc6 {[%clk 0:01:24]} 26. Nc3 {[%clk 0:01:32]}  Ne5 {[%clk 0:01:09]} 27. Qf2 {[%clk 0:01:25]}  Rb8 {[%clk 0:00:58]} 28. Nd5 {[%clk 0:01:22]}  Bxd5 {[%clk 0:00:51]} 29. cxd5 {[%clk 0:01:23]}  Qe7 {[%clk 0:00:14]} 30. Bxb6 {[%clk 0:01:21]}  Rdc8 {[%clk 0:00:12]} 31. Rxc8+ {[%clk 0:01:17]}  Rxc8 {[%clk 0:00:13]} 32. dxe6 {[%clk 0:01:17]}  fxe6 {[%clk 0:00:13]} 33. f4 {[%clk 0:01:13]}  Nc4 {[%clk 0:00:08]} 34. Bd4 {[%clk 0:01:06]}  e5 {[%clk 0:00:06]} 35. fxe5 {[%clk 0:01:03]}  dxe5 {[%clk 0:00:07]} 36. Bc5 {[%clk 0:01:04]}  Qe6 {[%clk 0:00:02]} 37. Rd6 {[%clk 0:00:55]} 1-0


[Site "https://www.chess.com"]

[Event "Titled Tuesday Blitz November 15 Early 2022"]
[White "Flis, Pawel"]
[Black "Koridze, Lile"]
[WhiteFideId "1112864"]
[BlackFideId "13612514"]
[WhiteElo "1817"]
[BlackElo "2050"]
[Result "0-1"]
[Round "11"]
[TimeControl "180+1"]
[Date "2022.11.16"]
[WhiteClock "0:00:05"]
[BlackClock "0:00:06"]

1. e4 {[%clk 0:03:00]}  c5 {[%clk 0:03:00]} 2. Nf3 {[%clk 0:03:00]}  d6 {[%clk 0:03:00]} 3. d4 {[%clk 0:03:00]}  cxd4 {[%clk 0:03:00]} 4. Nxd4 {[%clk 0:03:00]}  Nf6 {[%clk 0:03:01]} 5. Nc3 {[%clk 0:03:01]}  a6 {[%clk 0:03:01]} 6. Bg5 {[%clk 0:03:01]}  Nbd7 {[%clk 0:03:00]} 7. f4 {[%clk 0:03:01]}  e5 {[%clk 0:02:07]} 8. Nf3 {[%clk 0:02:49]}  Qb6 {[%clk 0:02:04]} 9. Bxf6 {[%clk 0:02:35]}  Nxf6 {[%clk 0:01:59]} 10. fxe5 {[%clk 0:02:27]}  dxe5 {[%clk 0:01:59]} 11. Nd5 {[%clk 0:02:12]}  Nxd5 {[%clk 0:01:34]} 12. Qxd5 {[%clk 0:02:10]}  Qxb2 {[%clk 0:01:13]} 13. Qxe5+ {[%clk 0:01:37]}  Qxe5 {[%clk 0:01:12]} 14. Nxe5 {[%clk 0:01:38]}  Bb4+ {[%clk 0:01:12]} 15. Kd1 {[%clk 0:01:03]}  Bc3 {[%clk 0:01:12]} 16. Nxf7 {[%clk 0:01:03]}  Kxf7 {[%clk 0:01:06]} 17. Bc4+ {[%clk 0:01:03]}  Ke7 {[%clk 0:01:05]} 18. Rb1 {[%clk 0:01:04]}  Bg4+ {[%clk 0:00:59]} 19. Be2 {[%clk 0:01:03]}  Rad8+ {[%clk 0:00:59]} 20. Kc1 {[%clk 0:01:01]}  Bxe2 {[%clk 0:00:57]} 21. Rxb7+ {[%clk 0:01:01]}  Ke6 {[%clk 0:00:57]} 22. Rb3 {[%clk 0:00:55]}  Bd2+ {[%clk 0:00:51]} 23. Kb1 {[%clk 0:00:54]}  Rb8 {[%clk 0:00:50]} 24. h4 {[%clk 0:00:51]}  Bc4 {[%clk 0:00:50]} 25. Rb2 {[%clk 0:00:43]}  Rxb2+ {[%clk 0:00:45]} 26. Kxb2 {[%clk 0:00:44]}  Rb8+ {[%clk 0:00:45]} 27. Ka3 {[%clk 0:00:44]}  Bc3 {[%clk 0:00:41]} 28. Rh3 {[%clk 0:00:38]}  Bb4+ {[%clk 0:00:33]} 29. Kb2 {[%clk 0:00:34]}  Bd2+ {[%clk 0:00:19]} 30. Ka3 {[%clk 0:00:30]}  Bc1+ {[%clk 0:00:19]} 31. Ka4 {[%clk 0:00:30]}  Ke5 {[%clk 0:00:17]} 32. Rg3 {[%clk 0:00:21]}  g6 {[%clk 0:00:08]} 33. Rg4 {[%clk 0:00:18]}  Bd2 {[%clk 0:00:08]} 34. h5 {[%clk 0:00:15]}  Rb2 {[%clk 0:00:06]} 35. a3 {[%clk 0:00:05]}  Bb5# {[%clk 0:00:06]} 0-1


[Site "https://www.chess.com"]

[Event "Titled Tuesday Blitz November 15 Early 2022"]
[White "Gabdrakhmanov, Azat"]
[Black "Gheorghiu, Calin"]
[WhiteFideId "34189197"]
[BlackFideId "1200305"]
[WhiteElo "2254"]
[BlackElo "2225"]
[Result "1-0"]
[Round "11"]
[TimeControl "180+1"]
[Date "2022.11.15"]
[WhiteClock "0:00:05"]
[BlackClock "0:00:01"]

1. e4 {[%clk 0:03:00]}  e6 {[%clk 0:02:59]} 2. d3 {[%clk 0:03:00]}  d5 {[%clk 0:02:59]} 3. Nd2 {[%clk 0:03:01]}  c5 {[%clk 0:02:57]} 4. g3 {[%clk 0:03:01]}  Nc6 {[%clk 0:02:58]} 5. Bg2 {[%clk 0:03:01]}  Bd6 {[%clk 0:02:53]} 6. Ngf3 {[%clk 0:03:01]}  Nge7 {[%clk 0:02:53]} 7. O-O {[%clk 0:03:01]}  O-O {[%clk 0:02:54]} 8. Re1 {[%clk 0:03:02]}  Qc7 {[%clk 0:02:54]} 9. Qe2 {[%clk 0:03:01]}  f6 {[%clk 0:02:53]} 10. Nf1 {[%clk 0:02:46]}  Bd7 {[%clk 0:02:52]} 11. h4 {[%clk 0:02:46]}  b5 {[%clk 0:02:46]} 12. h5 {[%clk 0:02:44]}  Nd4 {[%clk 0:02:39]} 13. Nxd4 {[%clk 0:02:43]}  cxd4 {[%clk 0:02:40]} 14. h6 {[%clk 0:02:43]}  g6 {[%clk 0:02:40]} 15. c3 {[%clk 0:01:47]}  dxc3 {[%clk 0:02:24]} 16. bxc3 {[%clk 0:01:48]}  Qxc3 {[%clk 0:02:24]} 17. Bb2 {[%clk 0:01:47]}  Qa5 {[%clk 0:01:33]} 18. Ne3 {[%clk 0:01:38]}  dxe4 {[%clk 0:01:23]} 19. dxe4 {[%clk 0:01:36]}  Bc6 {[%clk 0:01:16]} 20. Red1 {[%clk 0:01:11]}  Bc5 {[%clk 0:01:05]} 21. Rac1 {[%clk 0:01:09]}  Qb6 {[%clk 0:01:03]} 22. Ng4 {[%clk 0:01:02]}  e5 {[%clk 0:01:02]} 23. Qf3 {[%clk 0:01:00]}  Bb7 {[%clk 0:00:45]} 24. Rd7 {[%clk 0:00:47]}  Bc8 {[%clk 0:00:15]} 25. Qb3+ {[%clk 0:00:19]}  Kh8 {[%clk 0:00:15]} 26. Nxe5 {[%clk 0:00:20]}  Bxf2+ {[%clk 0:00:15]} 27. Kh1 {[%clk 0:00:19]}  Bxd7 {[%clk 0:00:15]} 28. Nxd7 {[%clk 0:00:19]}  Qe3 {[%clk 0:00:16]} 29. Qxe3 {[%clk 0:00:09]}  Bxe3 {[%clk 0:00:15]} 30. Re1 {[%clk 0:00:09]}  Bg5 {[%clk 0:00:11]} 31. Nxf8 {[%clk 0:00:09]}  Rxf8 {[%clk 0:00:10]} 32. e5 {[%clk 0:00:09]}  Nf5 {[%clk 0:00:07]} 33. exf6 {[%clk 0:00:09]}  Bxh6 {[%clk 0:00:04]} 34. f7+ {[%clk 0:00:05]}  Bg7 {[%clk 0:00:03]} 35. Re8 {[%clk 0:00:05]}  h6 {[%clk 0:00:01]} 36. Rxf8+ {[%clk 0:00:05]}  Kh7 {[%clk 0:00:01]} 37. Re8 {[%clk 0:00:05]} 1-0


[Site "https://www.chess.com"]

[Event "Titled Tuesday Blitz November 15 Early 2022"]
[White "Gabrielian, Artur"]
[Black "Indjic, Aleksandar"]
[WhiteFideId "4131002"]
[BlackFideId "911925"]
[WhiteElo "2432"]
[BlackElo "2592"]
[Result "0-1"]
[Round "11"]
[TimeControl "180+1"]
[Date "2022.11.15"]
[WhiteClock "0:00:15"]
[BlackClock "0:01:15"]

1. e4 {[%clk 0:03:00]}  d6 {[%clk 0:02:55]} 2. d4 {[%clk 0:03:00]}  Nf6 {[%clk 0:02:55]} 3. Nc3 {[%clk 0:03:01]}  e5 {[%clk 0:02:56]} 4. Nf3 {[%clk 0:03:00]}  Nbd7 {[%clk 0:02:55]} 5. Bc4 {[%clk 0:03:00]}  Be7 {[%clk 0:02:53]} 6. O-O {[%clk 0:03:01]}  c6 {[%clk 0:02:49]} 7. a4 {[%clk 0:03:00]}  h6 {[%clk 0:02:48]} 8. h3 {[%clk 0:02:59]}  Qc7 {[%clk 0:02:48]} 9. Be3 {[%clk 0:02:48]}  g5 {[%clk 0:02:47]} 10. dxe5 {[%clk 0:02:45]}  dxe5 {[%clk 0:02:45]} 11. Nd2 {[%clk 0:02:31]}  Nf8 {[%clk 0:02:44]} 12. a5 {[%clk 0:02:22]}  Ng6 {[%clk 0:02:43]} 13. Be2 {[%clk 0:02:02]}  Be6 {[%clk 0:02:42]} 14. Nc4 {[%clk 0:01:46]}  Nf4 {[%clk 0:02:40]} 15. Bxf4 {[%clk 0:01:37]}  gxf4 {[%clk 0:02:39]} 16. Bd3 {[%clk 0:01:19]}  Rg8 {[%clk 0:02:36]} 17. Kh1 {[%clk 0:01:19]}  O-O-O {[%clk 0:02:35]} 18. Qe2 {[%clk 0:01:11]}  Kb8 {[%clk 0:02:23]} 19. Rab1 {[%clk 0:01:05]}  Rg5 {[%clk 0:02:09]} 20. b4 {[%clk 0:01:03]}  Rdg8 {[%clk 0:02:04]} 21. Rg1 {[%clk 0:01:03]}  Qc8 {[%clk 0:02:03]} 22. Kh2 {[%clk 0:00:49]}  Rh5 {[%clk 0:01:47]} 23. b5 {[%clk 0:00:21]}  Bxc4 {[%clk 0:01:17]} 24. Bxc4 {[%clk 0:00:15]}  Rxg2+ {[%clk 0:01:15]} 0-1


[Site "https://www.chess.com"]

[Event "Titled Tuesday Blitz November 15 Early 2022"]
[White "Galchenko, Matvey"]
[Black "Zemlyanskii, Ivan"]
[WhiteFideId "24175480"]
[BlackFideId "24249971"]
[WhiteElo "2403"]
[BlackElo "2107"]
[Result "1-0"]
[Round "11"]
[TimeControl "180+1"]
[Date "2022.11.15"]
[WhiteClock "0:00:32"]
[BlackClock "0:00:13"]

1. f4 {[%clk 0:02:55]}  d5 {[%clk 0:02:53]} 2. Nf3 {[%clk 0:02:56]}  Nc6 {[%clk 0:02:51]} 3. g3 {[%clk 0:02:56]}  h5 {[%clk 0:02:51]} 4. d3 {[%clk 0:02:56]}  h4 {[%clk 0:02:46]} 5. Nxh4 {[%clk 0:02:56]}  Rxh4 {[%clk 0:02:41]} 6. gxh4 {[%clk 0:02:57]}  e5 {[%clk 0:02:41]} 7. Be3 {[%clk 0:02:57]}  Nh6 {[%clk 0:02:28]} 8. h3 {[%clk 0:02:37]}  Be7 {[%clk 0:02:08]} 9. c3 {[%clk 0:02:31]}  Bxh4+ {[%clk 0:02:07]} 10. Kd2 {[%clk 0:02:32]}  Nf5 {[%clk 0:02:07]} 11. Bg1 {[%clk 0:02:27]}  exf4 {[%clk 0:02:02]} 12. Na3 {[%clk 0:02:18]}  Bg5 {[%clk 0:01:39]} 13. Kc2 {[%clk 0:02:15]}  d4 {[%clk 0:01:36]} 14. Bg2 {[%clk 0:02:11]}  Be6 {[%clk 0:01:33]} 15. Bf2 {[%clk 0:02:01]}  Bh4 {[%clk 0:01:29]} 16. Bg1 {[%clk 0:01:53]}  Bd5 {[%clk 0:01:24]} 17. Be4 {[%clk 0:01:23]}  Ng3 {[%clk 0:00:52]} 18. Bxd5 {[%clk 0:01:21]}  Qxd5 {[%clk 0:00:53]} 19. Rh2 {[%clk 0:01:22]}  Nf5 {[%clk 0:00:54]} 20. Qf1 {[%clk 0:01:19]}  Bg3 {[%clk 0:00:52]} 21. Qg2 {[%clk 0:01:12]}  Qc5 {[%clk 0:00:44]} 22. Rc1 {[%clk 0:01:01]}  Bxh2 {[%clk 0:00:32]} 23. Qxh2 {[%clk 0:01:02]}  g5 {[%clk 0:00:25]} 24. Kb1 {[%clk 0:01:00]}  Qd5 {[%clk 0:00:26]} 25. cxd4 {[%clk 0:00:38]}  O-O-O {[%clk 0:00:13]} 26. h4 {[%clk 0:00:32]} 1-0


[Site "https://www.chess.com"]

[Event "Titled Tuesday Blitz November 15 Early 2022"]
[White "Gokerkan, Cem Kaan"]
[Black "Durarbayli, Vasif"]
[WhiteFideId "6336760"]
[BlackFideId "13402935"]
[WhiteElo "2365"]
[BlackElo "2586"]
[Result "1/2-1/2"]
[Round "11"]
[TimeControl "180+1"]
[Date "2022.11.15"]
[WhiteClock "0:00:07"]
[BlackClock "0:00:04"]

1. e4 {[%clk 0:03:00]}  c5 {[%clk 0:02:59]} 2. c3 {[%clk 0:03:01]}  d6 {[%clk 0:03:00]} 3. d4 {[%clk 0:03:01]}  Nd7 {[%clk 0:02:47]} 4. Nf3 {[%clk 0:03:00]}  g6 {[%clk 0:02:47]} 5. Bc4 {[%clk 0:02:51]}  Bg7 {[%clk 0:02:33]} 6. O-O {[%clk 0:02:50]}  Qc7 {[%clk 0:02:19]} 7. Qe2 {[%clk 0:02:12]}  Nb6 {[%clk 0:01:53]} 8. Bd3 {[%clk 0:02:06]}  Bg4 {[%clk 0:01:52]} 9. h3 {[%clk 0:01:54]}  Bxf3 {[%clk 0:01:49]} 10. Bb5+ {[%clk 0:01:55]}  Kf8 {[%clk 0:01:37]} 11. Qxf3 {[%clk 0:01:55]}  cxd4 {[%clk 0:01:38]} 12. cxd4 {[%clk 0:01:55]}  Bxd4 {[%clk 0:01:37]} 13. Nc3 {[%clk 0:01:53]}  Kg7 {[%clk 0:01:33]} 14. Bd2 {[%clk 0:01:42]}  a6 {[%clk 0:01:23]} 15. Be2 {[%clk 0:01:37]}  Nf6 {[%clk 0:01:08]} 16. Rac1 {[%clk 0:01:37]}  Qd7 {[%clk 0:01:00]} 17. Rfd1 {[%clk 0:01:34]}  Rhc8 {[%clk 0:00:53]} 18. Bg5 {[%clk 0:00:46]}  Be5 {[%clk 0:00:46]} 19. Qe3 {[%clk 0:00:38]}  Nc4 {[%clk 0:00:37]} 20. Bxc4 {[%clk 0:00:38]}  Rxc4 {[%clk 0:00:38]} 21. Bxf6+ {[%clk 0:00:36]}  exf6 {[%clk 0:00:29]} 22. Nd5 {[%clk 0:00:37]}  Rxc1 {[%clk 0:00:24]} 23. Rxc1 {[%clk 0:00:38]}  Rc8 {[%clk 0:00:22]} 24. Rd1 {[%clk 0:00:38]}  Rc2 {[%clk 0:00:16]} 25. b3 {[%clk 0:00:33]}  Rxa2 {[%clk 0:00:15]} 26. f4 {[%clk 0:00:30]}  Ra1 {[%clk 0:00:11]} 27. Qe2 {[%clk 0:00:20]}  Bb2 {[%clk 0:00:06]} 28. Kh2 {[%clk 0:00:16]}  Rxd1 {[%clk 0:00:06]} 29. Qxd1 {[%clk 0:00:17]}  Qc6 {[%clk 0:00:06]} 30. Qd2 {[%clk 0:00:16]}  Qc1 {[%clk 0:00:06]} 31. Qb4 {[%clk 0:00:13]}  b5 {[%clk 0:00:04]} 32. Qxd6 {[%clk 0:00:13]}  Bd4 {[%clk 0:00:04]} 33. e5 {[%clk 0:00:10]}  Qg1+ {[%clk 0:00:04]} 34. Kg3 {[%clk 0:00:10]}  fxe5 {[%clk 0:00:04]} 35. Qf6+ {[%clk 0:00:10]}  Kh6 {[%clk 0:00:04]} 36. Qh4+ {[%clk 0:00:09]}  Kg7 {[%clk 0:00:05]} 37. Qf6+ {[%clk 0:00:10]}  Kg8 {[%clk 0:00:03]} 38. Qd8+ {[%clk 0:00:06]}  Kg7 {[%clk 0:00:04]} 39. Qf6+ {[%clk 0:00:07]} 1/2-1/2


[Site "https://www.chess.com"]

[Event "Titled Tuesday Blitz November 15 Early 2022"]
[White "Goltseva, Ekaterina"]
[Black "Harshavardhan G B"]
[WhiteFideId "24173770"]
[BlackFideId "25059009"]
[WhiteElo "2200"]
[BlackElo "2333"]
[Result "1-0"]
[Round "11"]
[TimeControl "180+1"]
[Date "2022.11.16"]
[WhiteClock "0:00:16"]
[BlackClock "0:00:18"]

1. d4 {[%clk 0:03:00]}  Nf6 {[%clk 0:02:42]} 2. Nc3 {[%clk 0:03:00]}  d5 {[%clk 0:02:40]} 3. Bf4 {[%clk 0:03:00]}  Bf5 {[%clk 0:02:39]} 4. e3 {[%clk 0:02:58]}  e6 {[%clk 0:02:38]} 5. Be2 {[%clk 0:02:56]}  Bd6 {[%clk 0:02:36]} 6. g4 {[%clk 0:02:53]}  Bg6 {[%clk 0:02:35]} 7. Bxd6 {[%clk 0:02:48]}  Qxd6 {[%clk 0:02:36]} 8. h4 {[%clk 0:02:47]}  h6 {[%clk 0:02:31]} 9. Nh3 {[%clk 0:02:45]}  Ne4 {[%clk 0:02:24]} 10. Nxe4 {[%clk 0:02:39]}  Bxe4 {[%clk 0:02:25]} 11. Bf3 {[%clk 0:02:28]}  Bxf3 {[%clk 0:02:19]} 12. Qxf3 {[%clk 0:02:29]}  Qb4+ {[%clk 0:02:16]} 13. Kf1 {[%clk 0:02:29]}  Qxb2 {[%clk 0:02:15]} 14. Kg2 {[%clk 0:02:30]}  Qc3 {[%clk 0:02:10]} 15. Rab1 {[%clk 0:02:26]}  b6 {[%clk 0:02:07]} 16. Nf4 {[%clk 0:02:25]}  Nd7 {[%clk 0:02:03]} 17. g5 {[%clk 0:02:23]}  hxg5 {[%clk 0:01:59]} 18. hxg5 {[%clk 0:02:22]}  Rxh1 {[%clk 0:01:59]} 19. Rxh1 {[%clk 0:02:23]}  O-O-O {[%clk 0:01:58]} 20. g6 {[%clk 0:02:22]}  Qxc2 {[%clk 0:01:54]} 21. gxf7 {[%clk 0:02:18]}  Qf5 {[%clk 0:01:55]} 22. Qh5 {[%clk 0:02:08]}  g5 {[%clk 0:01:45]} 23. Nh3 {[%clk 0:01:59]}  Qe4+ {[%clk 0:01:40]} 24. f3 {[%clk 0:01:33]}  Qc2+ {[%clk 0:01:34]} 25. Kg3 {[%clk 0:01:25]}  g4 {[%clk 0:01:29]} 26. Qxg4 {[%clk 0:01:21]}  Qh7 {[%clk 0:01:11]} 27. Qxe6 {[%clk 0:01:16]}  Qg7+ {[%clk 0:01:01]} 28. Kf2 {[%clk 0:01:11]}  Kb8 {[%clk 0:00:55]} 29. Rg1 {[%clk 0:01:08]}  Qh7 {[%clk 0:00:48]} 30. Rg8 {[%clk 0:00:48]}  Qh4+ {[%clk 0:00:45]} 31. Kg2 {[%clk 0:00:41]}  Nf8 {[%clk 0:00:43]} 32. Qe8 {[%clk 0:00:39]}  Kb7 {[%clk 0:00:37]} 33. Rxf8 {[%clk 0:00:30]}  Rd6 {[%clk 0:00:34]} 34. Qc8+ {[%clk 0:00:21]}  Kc6 {[%clk 0:00:31]} 35. Rg8 {[%clk 0:00:21]}  Qe1 {[%clk 0:00:20]} 36. f8=Q {[%clk 0:00:18]}  Qxe3 {[%clk 0:00:18]} 37. Qfe8+ {[%clk 0:00:16]} 1-0


[Site "https://www.chess.com"]

[Event "Titled Tuesday Blitz November 15 Early 2022"]
[White "Gonzalez, Francisco Silva"]
[Black "Zaichenko, Daria"]
[WhiteFideId "1512285"]
[BlackFideId "4197453"]
[WhiteElo "2159"]
[BlackElo "2039"]
[Result "0-1"]
[Round "11"]
[TimeControl "180+1"]
[Date "2022.11.16"]
[WhiteClock "0:01:35"]
[BlackClock "0:00:34"]

1. d4 {[%clk 0:03:00]}  d5 {[%clk 0:02:58]} 2. c4 {[%clk 0:02:59]}  e6 {[%clk 0:02:58]} 3. Nc3 {[%clk 0:02:59]}  Be7 {[%clk 0:02:58]} 4. cxd5 {[%clk 0:02:56]}  exd5 {[%clk 0:02:58]} 5. Qb3 {[%clk 0:02:57]}  c6 {[%clk 0:02:52]} 6. e4 {[%clk 0:02:57]}  dxe4 {[%clk 0:02:46]} 7. Bc4 {[%clk 0:02:55]}  Be6 {[%clk 0:02:31]} 8. Bxe6 {[%clk 0:02:53]}  fxe6 {[%clk 0:02:31]} 9. Qxb7 {[%clk 0:02:53]}  Nd7 {[%clk 0:02:24]} 10. Qxc6 {[%clk 0:02:52]}  Nf6 {[%clk 0:02:24]} 11. Qxe6 {[%clk 0:02:49]}  Rb8 {[%clk 0:02:22]} 12. Nge2 {[%clk 0:02:48]}  Rb6 {[%clk 0:02:22]} 13. Qc4 {[%clk 0:02:47]}  Rb4 {[%clk 0:02:17]} 14. Qe6 {[%clk 0:02:43]}  Rb6 {[%clk 0:02:12]} 15. Qf5 {[%clk 0:02:31]}  O-O {[%clk 0:02:08]} 16. O-O {[%clk 0:02:31]}  Bd6 {[%clk 0:01:57]} 17. Nxe4 {[%clk 0:02:30]}  Nxe4 {[%clk 0:01:56]} 18. Qxe4 {[%clk 0:02:30]}  Nf6 {[%clk 0:01:56]} 19. Qh4 {[%clk 0:02:26]}  Qd7 {[%clk 0:01:49]} 20. h3 {[%clk 0:02:24]}  Be7 {[%clk 0:01:45]} 21. Nc3 {[%clk 0:02:22]}  Nd5 {[%clk 0:01:39]} 22. Qe4 {[%clk 0:02:20]}  Nb4 {[%clk 0:01:28]} 23. Be3 {[%clk 0:02:16]}  Re6 {[%clk 0:01:22]} 24. Qb1 {[%clk 0:02:14]}  Rg6 {[%clk 0:01:20]} 25. a3 {[%clk 0:02:05]}  Nd5 {[%clk 0:00:58]} 26. Qa2 {[%clk 0:02:04]}  Rf5 {[%clk 0:00:56]} 27. Nxd5 {[%clk 0:02:02]}  Rxd5 {[%clk 0:00:56]} 28. Rac1 {[%clk 0:01:59]}  h6 {[%clk 0:00:48]} 29. Rc8+ {[%clk 0:01:58]}  Kh7 {[%clk 0:00:46]} 30. Kh1 {[%clk 0:01:52]}  Rh5 {[%clk 0:00:44]} 31. Qc4 {[%clk 0:01:35]}  Rxh3+ {[%clk 0:00:40]} 32. Kg1 {[%clk 0:01:35]}  Rxg2+ {[%clk 0:00:34]} 0-1


[Site "https://www.chess.com"]